[Event "55th Rubinstein Memorial-A 2019"]
[Site "Polanica-Zdroj"]
[Date "2019.08.20"]
[Round "4.6"]
[White "Kosakowski, Jakub"]
[Black "Lukasiewicz, Krzysztof"]
[Result "1-0"]
[ECO "D35"]
[WhiteElo "2401"]
[BlackElo "2185"]
[Annotator "NA"]
[PlyCount "109"]
[EventDate "2019.08.17"]
[EventType "swiss"]
[EventCountry "POL"]
[SourceTitle "playchess.com"]
[Source "ChessBase"]
[SourceQuality "1"]
[TimeControl "40/5400+30:1800+30"]

1. d4 {[%emt 0:02:31]} Nf6 {[%emt 0:00:00]} 2. c4 {[%emt 0:00:10]} e6 {[%emt 0:00:00]} 3. Nc3 {[%emt 0:00:10]} d5 {[%emt 0:00:00]} 4. cxd5 {[%emt 0:00:13]} exd5 {[%emt 0:00:00]} 5. Bg5 {[%emt 0:00:10]} c6 {[%emt 0:00:03]} 6. e3 {[%emt 0:00:09]} Be7 {[%emt 0:00:02]} 7. Bd3 {[%emt 0:00:13]} Nbd7 {[%emt 0:00:17]} 8. Nge2 {[%emt 0:00:17]} Nh5 {[%emt 0:00:09]} 9. Bxe7 {[%emt 0:00:08]} Qxe7 {[%emt 0:00:02]} 10. g4 {[%emt 0:00:13]} Nhf6 {[%emt 0:00:05]} 11. Ng3 {[%emt 0:00:07]} Nb6 {[%emt 0:01:53]} 12. g5 {[%emt 0:09:33]} Nfd7 {[%emt 0:25:16]} 13. h4 {[%emt 0:03:54]} g6 {[%emt 0:01:53]} 14. Qe2 {[%emt 0:13:04]} Nf8 {[%emt 0:05:24]} 15. O-O-O {[%emt 0:00:44]} Be6 {[%emt 0:00:07]} 16. f4 {[%emt 0:02:04]} O-O-O {[%emt 0:09:40]} 17. f5 {[%emt 0:04:58]} Bd7 {[%emt 0:08:56]} 18. Qf3 {[%emt 0:09:16]} h6 {[%emt 0:15:14]} 19. Qf4 {[%emt 0:04:11]} hxg5 {[%emt 0:05:15]} 20. hxg5 {[%emt 0:00:45]} Rxh1 {[%emt 0:03:07]} 21. Rxh1 {[%emt 0:00:19]} Re8 {[%emt 0:00:58]} 22. e4 {[%emt 0:07:37]} Qb4 {[%emt 0:05:36]} 23. e5 {[%emt 0:01:14]} c5 {[%emt 0:02:51]} 24. e6 {[%emt 0:20:34]} fxe6 {[%emt 0:01:30]} 25. fxg6 {[%emt 0:00:36]} e5 {[%emt 0:00:43]} 26. Qf7 {[%emt 0:00:13]} Nxg6 {[%emt 0:03:58]} 27. Bxg6 {[%emt 0:01:57]} cxd4 {[%emt 0:00:06]} 28. Nxd5 {[%emt 0:00:49]} Qc5+ {[%emt 0:01:48]} 29. Kb1 {[%emt 0:00:06]} Qxd5 {[%emt 0:00:09]} 30. Qxd5 {[%emt 0:05:54]} Nxd5 {[%emt 0:00:03]} 31. Bxe8 {[%emt 0:00:10]} Bxe8 {[%emt 0:00:04]} 32. Rh6 {[%emt 0:00:14]} Nf4 {[%emt 0:01:57]} 33. Kc2 {[%emt 0:00:10]} Bg6+ {[%emt 0:04:37]} 34. Kd2 {[%emt 0:00:09]} d3 {[%emt 0:00:02]} 35. Rh8+ {[%emt 0:00:57]} Kd7 {[%emt 0:00:14]} 36. Rf8 {[%emt 0:00:46]} Nd5 {[%emt 0:03:11]} 37. Nf5 {[%emt 0:00:39]} e4 {[%emt 0:01:02]} 38. Ne3 {[%emt 0:00:11]} Ne7 {[%emt 0:01:20]} 39. Rf6 {[%emt 0:00:09]} Bh5 {[%emt 0:00:27]} 40. Nc4 {[%emt 0:00:00]} Ng6 {[%emt 0:00:00]} 41. Ke3 {[%emt 0:01:12]} b5 {[%emt 0:04:11]} 42. Nd2 {[%emt 0:00:30]} Ne5 {[%emt 0:00:04]} 43. Kxe4 {[%emt 0:00:23]} Nf7 {[%emt 0:02:15]} 44. g6 {[%emt 0:00:32]} Nd6+ {[%emt 0:00:04]} 45. Ke5 {[%emt 0:02:25]} Ne8 {[%emt 0:00:51]} 46. Ra6 {[%emt 0:00:09]} Nc7 {[%emt 0:00:03]} 47. g7 {[%emt 0:00:31]} Bf7 {[%emt 0:00:03]} 48. Rxa7 {[%emt 0:00:18]} Kc6 {[%emt 0:00:39]} 49. b4 {[%emt 0:00:46]} Kb6 {[%emt 0:00:49]} 50. Ra3 {[%emt 0:00:06]} Nd5 {[%emt 0:00:09]} 51. Ra8 {[%emt 0:00:24]} Ne3 {[%emt 0:02:25]} 52. g8=Q {[%emt 0:00:40]} Bxg8 {[%emt 0:00:04]} 53. Rxg8 {[%emt 0:00:04]} Nc4+ {[%emt 0:00:04]} 54. Nxc4+ {[%emt 0:00:03]} bxc4 {[%emt 0:00:04]} 55. Kd4 1-0

[Event "55th Rubinstein Memorial-A 2019"]
[Site "Polanica-Zdroj"]
[Date "2019.08.20"]
[Round "4.7"]
[White "Marszalek, Maciej"]
[Black "Wysocki, Mateusz"]
[Result "1-0"]
[ECO "E70"]
[WhiteElo "2295"]
[BlackElo "1786"]
[Annotator "NA"]
[PlyCount "97"]
[EventDate "2019.08.17"]
[EventType "swiss"]
[EventCountry "POL"]
[SourceTitle "playchess.com"]
[Source "ChessBase"]
[SourceQuality "1"]
[TimeControl "40/5400+30:1800+30"]

1. d4 {[%emt 0:00:00]} Nf6 {[%emt 0:00:00]} 2. c4 {[%emt 0:00:00]} g6 {[%emt 0:00:00]} 3. Nc3 {[%emt 0:00:05]} Bg7 {[%emt 0:00:10]} 4. e4 {[%emt 0:00:12]} d6 {[%emt 0:00:12]} 5. Bd3 {[%emt 0:00:20]} O-O {[%emt 0:00:51]} 6. Nge2 {[%emt 0:00:08]} e5 {[%emt 0:00:39]} 7. d5 {[%emt 0:00:40]} Nbd7 {[%emt 0:00:43]} 8. O-O {[%emt 0:00:15]} c6 {[%emt 0:01:50]} 9. h3 {[%emt 0:01:07]} a6 {[%emt 0:07:04]} 10. Bg5 {[%emt 0:02:10]} cxd5 {[%emt 0:00:37]} 11. Nxd5 {[%emt 0:03:10]} h6 {[%emt 0:01:58]} 12. Nxf6+ {[%emt 0:02:04]} Nxf6 {[%emt 0:01:28]} 13. Be3 {[%emt 0:00:19]} Be6 {[%emt 0:02:31]} 14. b3 {[%emt 0:05:19]} Rc8 {[%emt 0:02:26]} 15. Qd2 {[%emt 0:01:46]} g5 {[%emt 0:03:36]} 16. Ng3 {[%emt 0:02:23]} Re8 {[%emt 0:04:09]} 17. Rfd1 {[%emt 0:01:04]} Qe7 {[%emt 0:01:00]} 18. Rac1 {[%emt 0:00:34]} Rc6 {[%emt 0:09:33]} 19. Be2 {[%emt 0:03:10]} Rec8 {[%emt 0:05:53]} 20. a4 {[%emt 0:07:42]} Qd7 {[%emt 0:06:18]} 21. a5 {[%emt 0:00:58]} Qe7 {[%emt 0:00:30]} 22. Rc3 {[%emt 0:03:39]} Kh7 {[%emt 0:08:06]} 23. Rd3 {[%emt 0:02:48]} Bf8 {[%emt 0:00:56]} 24. Qb2 {[%emt 0:01:56]} Qc7 {[%emt 0:04:23]} 25. Bb6 {[%emt 0:01:55]} Qe7 {[%emt 0:00:19]} 26. Rf3 {[%emt 0:06:42]} Bg7 {[%emt 0:03:57]} 27. Qb1 {[%emt 0:02:57]} Kg8 {[%emt 0:00:36]} 28. Nf5 {[%emt 0:00:21]} Bxf5 {[%emt 0:01:07]} 29. Rxf5 {[%emt 0:00:19]} Nd7 {[%emt 0:00:06]} 30. Be3 {[%emt 0:00:19]} Nf8 {[%emt 0:00:04]} 31. h4 {[%emt 0:01:18]} f6 {[%emt 0:00:40]} 32. hxg5 {[%emt 0:01:09]} fxg5 {[%emt 0:00:18]} 33. Bh5 {[%emt 0:00:51]} Bf6 {[%emt 0:01:51]} 34. Rf3 {[%emt 0:00:31]} Ne6 {[%emt 0:00:32]} 35. Bg4 {[%emt 0:00:07]} Rf8 {[%emt 0:00:05]} 36. Bxe6+ {[%emt 0:00:19]} Qxe6 {[%emt 0:00:08]} 37. Rd3 {[%emt 0:03:19]} Rcc8 {[%emt 0:02:15]} 38. Qd1 {[%emt 0:01:10]} Be7 {[%emt 0:00:06]} 39. Rh3 {[%emt 0:09:45]} Kg7 {[%emt 0:01:02]} 40. Qh5 {[%emt 0:00:00]} Rcd8 {[%emt 0:00:00]} 41. Bb6 {[%emt 0:03:40]} Rc8 {[%emt 0:13:39]} 42. Be3 {[%emt 0:09:15]} Rcd8 {[%emt 0:01:31]} 43. Bd2 {[%emt 0:00:08]} Qg6 {[%emt 0:01:49]} 44. Qg4 {[%emt 0:00:27]} Rf6 {[%emt 0:00:50]} 45. Rh5 {[%emt 0:02:50]} Qf7 {[%emt 0:03:44]} 46. Bxg5 {[%emt 0:05:53]} hxg5 {[%emt 0:01:06]} 47. Rdh3 {[%emt 0:00:07]} Qe6 {[%emt 0:05:56]} 48. Rh7+ {[%emt 0:01:46]} Kf8 {[%emt 0:01:46]} 49. Rh8+ {[%emt 0:00:01]} 1-0

[Event "55th Rubinstein Memorial-A 2019"]
[Site "Polanica-Zdroj"]
[Date "2019.08.20"]
[Round "4.8"]
[White "Wloch, Mikolaj"]
[Black "Jaroch, Karol"]
[Result "0-1"]
[ECO "B92"]
[WhiteElo "1771"]
[BlackElo "2231"]
[Annotator "NA"]
[PlyCount "108"]
[EventDate "2019.08.17"]
[EventType "swiss"]
[EventCountry "POL"]
[SourceTitle "playchess.com"]
[Source "ChessBase"]
[SourceQuality "1"]
[TimeControl "40/5400+30:1800+30"]

1. e4 {[%emt 0:00:00]} c5 {[%emt 0:00:09]} 2. Nf3 {[%emt 0:00:00]} d6 {[%emt 0:00:05]} 3. d4 {[%emt 0:00:00]} cxd4 {[%emt 0:00:02]} 4. Nxd4 {[%emt 0:00:00]} Nf6 {[%emt 0:00:04]} 5. Nc3 {[%emt 0:00:00]} a6 {[%emt 0:00:13]} 6. Be2 {[%emt 0:01:59]} e5 {[%emt 0:01:42]} 7. Nb3 {[%emt 0:00:14]} Be7 {[%emt 0:00:06]} 8. Be3 {[%emt 0:00:10]} O-O {[%emt 0:00:47]} 9. O-O {[%emt 0:00:29]} Be6 {[%emt 0:04:15]} 10. h3 {[%emt 0:06:49]} Nbd7 {[%emt 0:04:51]} 11. Qd2 {[%emt 0:03:23]} b5 {[%emt 0:05:22]} 12. f3 {[%emt 0:09:26]} Nb6 {[%emt 0:03:37]} 13. Bg5 {[%emt 0:07:06]} b4 {[%emt 0:36:21]} 14. Bxf6 {[%emt 0:02:42]} Bxf6 {[%emt 0:00:03]} 15. Nd5 {[%emt 0:01:15]} Bxd5 {[%emt 0:03:48]} 16. exd5 {[%emt 0:02:33]} a5 {[%emt 0:01:11]} 17. Qd3 {[%emt 0:03:47]} Qc7 {[%emt 0:07:13]} 18. Kh1 {[%emt 0:04:54]} Rfc8 {[%emt 0:01:09]} 19. Rac1 {[%emt 0:03:37]} Bg5 {[%emt 0:01:30]} 20. Nd2 {[%emt 0:00:24]} Na4 {[%emt 0:00:16]} 21. f4 {[%emt 0:11:15]} Bxf4 {[%emt 0:02:37]} 22. Rxf4 {[%emt 0:00:07]} exf4 {[%emt 0:00:04]} 23. Qf5 {[%emt 0:00:07]} Qe7 {[%emt 0:05:26]} 24. Bb5 {[%emt 0:04:21]} Qe3 {[%emt 0:02:50]} 25. Bxa4 {[%emt 0:01:52]} Qxd2 {[%emt 0:00:07]} 26. Rf1 {[%emt 0:00:07]} Rc7 {[%emt 0:03:42]} 27. Qxf4 {[%emt 0:06:16]} Qxf4 {[%emt 0:00:06]} 28. Rxf4 {[%emt 0:00:03]} Rac8 {[%emt 0:00:20]} 29. Rf2 {[%emt 0:00:38]} Re7 {[%emt 0:00:09]} 30. Kg1 {[%emt 0:02:02]} Rc5 {[%emt 0:01:22]} 31. Rd2 {[%emt 0:02:14]} Re1+ {[%emt 0:02:44]} 32. Kf2 {[%emt 0:00:06]} Rb1 {[%emt 0:00:31]} 33. Re2 {[%emt 0:00:22]} g6 {[%emt 0:00:04]} 34. Re8+ {[%emt 0:02:16]} Kg7 {[%emt 0:00:03]} 35. Re7 {[%emt 0:00:56]} Rxd5 {[%emt 0:00:30]} 36. Bb3 {[%emt 0:00:09]} Rf5+ {[%emt 0:00:05]} 37. Ke2 {[%emt 0:00:25]} Re5+ {[%emt 0:00:43]} 38. Rxe5 {[%emt 0:00:06]} dxe5 {[%emt 0:00:03]} 39. Kd3 {[%emt 0:00:06]} Rxb2 {[%emt 0:00:07]} 40. Kc4 {[%emt 0:00:00]} e4 {[%emt 0:00:00]} 41. Kd4 {[%emt 0:00:45]} f5 {[%emt 0:00:16]} 42. Ke3 {[%emt 0:00:13]} Kf6 {[%emt 0:00:08]} 43. Kd2 {[%emt 0:00:07]} Ke5 {[%emt 0:01:15]} 44. Kc1 {[%emt 0:00:18]} e3 {[%emt 0:00:08]} 45. Bc4 {[%emt 0:00:12]} Kd4 {[%emt 0:00:05]} 46. Be2 {[%emt 0:00:22]} Kc3 {[%emt 0:00:09]} 47. g4 {[%emt 0:00:30]} Rxc2+ {[%emt 0:00:14]} 48. Kd1 {[%emt 0:00:02]} Rxa2 {[%emt 0:00:17]} 49. Bb5 {[%emt 0:00:31]} b3 {[%emt 0:00:15]} 50. gxf5 {[%emt 0:00:12]} Rd2+ {[%emt 0:00:05]} 51. Ke1 {[%emt 0:00:25]} b2 {[%emt 0:00:06]} 52. Bd3 {[%emt 0:00:39]} Kxd3 {[%emt 0:00:03]} 53. f6 {[%emt 0:00:14]} a4 {[%emt 0:00:03]} 54. f7 {[%emt 0:00:08]} b1=R# {[%emt 0:00:11]} 0-1

[Event "55th Rubinstein Memorial-A 2019"]
[Site "Polanica-Zdroj"]
[Date "2019.08.20"]
[Round "4.9"]
[White "Goluch, Piotr"]
[Black "Galuszka, Kamil"]
[Result "1-0"]
[ECO "A57"]
[WhiteElo "2418"]
[BlackElo "2058"]
[Annotator "NA"]
[PlyCount "45"]
[EventDate "2019.08.17"]
[EventType "swiss"]
[EventCountry "POL"]
[SourceTitle "playchess.com"]
[Source "ChessBase"]
[SourceQuality "1"]
[TimeControl "40/5400+30:1800+30"]

1. d4 {[%emt 0:00:00]} Nf6 {[%emt 0:00:00]} 2. c4 {[%emt 0:00:00]} c5 {[%emt 0:00:58]} 3. d5 {[%emt 0:00:00]} b5 {[%emt 0:00:18]} 4. f3 {[%emt 0:01:32]} e6 {[%emt 0:07:50]} 5. e4 {[%emt 0:00:06]} bxc4 {[%emt 0:00:06]} 6. Nc3 {[%emt 0:00:04]} Bb7 {[%emt 0:01:06]} 7. Bg5 {[%emt 0:00:41]} d6 {[%emt 0:08:20]} 8. dxe6 {[%emt 0:00:20]} fxe6 {[%emt 0:00:05]} 9. e5 {[%emt 0:00:03]} h6 {[%emt 0:08:22]} 10. Bh4 {[%emt 0:04:56]} g5 {[%emt 0:01:25]} 11. Qc2 {[%emt 0:05:00]} Kf7 {[%emt 0:05:53]} 12. Bg3 {[%emt 0:09:32]} Nh5 {[%emt 0:02:24]} 13. exd6 {[%emt 0:00:10]} Nxg3 {[%emt 0:03:00]} 14. hxg3 {[%emt 0:00:04]} Qxd6 {[%emt 0:01:25]} 15. Bxc4 {[%emt 0:00:23]} Nc6 {[%emt 0:12:33]} 16. Nge2 {[%emt 0:06:16]} Nd4 {[%emt 0:06:34]} 17. Nxd4 {[%emt 0:02:48]} cxd4 {[%emt 0:00:06]} 18. O-O-O {[%emt 0:00:25]} Bg7 {[%emt 0:05:56]} 19. Rhe1 {[%emt 0:06:14]} Rhe8 {[%emt 0:05:47]} 20. Nb5 {[%emt 0:03:46]} Qb6 {[%emt 0:01:42]} 21. Nc7 {[%emt 0:06:09]} Re7 {[%emt 0:09:57]} 22. Nxe6 {[%emt 0:02:13]} Ree8 23. Nc7+ 1-0

[Event "55th Rubinstein Memorial-A 2019"]
[Site "Polanica-Zdroj"]
[Date "2019.08.20"]
[Round "4.10"]
[White "Czarniecka, Aleksandra"]
[Black "Mikhaletz, Lubomir"]
[Result "0-1"]
[ECO "B00"]
[WhiteElo "2042"]
[BlackElo "2412"]
[Annotator "NA"]
[PlyCount "100"]
[EventDate "2019.08.17"]
[EventType "swiss"]
[EventCountry "POL"]
[SourceTitle "playchess.com"]
[Source "ChessBase"]
[SourceQuality "1"]
[TimeControl "40/5400+30:1800+30"]

1. e4 {[%emt 0:00:00]} Nc6 {[%emt 0:09:45]} 2. Nf3 {[%emt 0:00:11]} Nf6 {[%emt 0:00:23]} 3. Nc3 {[%emt 0:05:16]} d5 {[%emt 0:01:04]} 4. e5 {[%emt 0:04:44]} Ne4 {[%emt 0:01:46]} 5. d4 {[%emt 0:06:23]} Bg4 {[%emt 0:00:45]} 6. Be2 {[%emt 0:09:27]} Bxf3 {[%emt 0:01:53]} 7. Bxf3 {[%emt 0:01:03]} Nxc3 {[%emt 0:00:21]} 8. bxc3 {[%emt 0:00:08]} e6 {[%emt 0:00:03]} 9. O-O {[%emt 0:03:27]} Be7 {[%emt 0:01:07]} 10. Be2 {[%emt 0:07:40]} a6 {[%emt 0:02:23]} 11. f4 {[%emt 0:06:56]} g6 {[%emt 0:00:25]} 12. a4 {[%emt 0:04:53]} h5 {[%emt 0:01:03]} 13. a5 {[%emt 0:04:44]} Kf8 {[%emt 0:17:52]} 14. Be3 {[%emt 0:04:27]} Kg7 {[%emt 0:04:31]} 15. c4 {[%emt 0:05:44]} dxc4 {[%emt 0:00:36]} 16. Bxc4 {[%emt 0:00:31]} Nb4 {[%emt 0:00:16]} 17. Bb3 {[%emt 0:03:27]} c5 {[%emt 0:00:41]} 18. dxc5 {[%emt 0:09:47]} Qc7 {[%emt 0:00:33]} 19. Qd4 {[%emt 0:02:34]} Nc6 {[%emt 0:00:03]} 20. Qc3 {[%emt 0:00:40]} Rhd8 {[%emt 0:02:27]} 21. Bc4 {[%emt 0:00:44]} Rac8 {[%emt 0:01:30]} 22. Rfb1 {[%emt 0:01:02]} Rd7 {[%emt 0:09:16]} 23. Be2 {[%emt 0:07:14]} Nd8 {[%emt 0:02:21]} 24. Rd1 {[%emt 0:00:17]} Rxd1+ {[%emt 0:00:10]} 25. Rxd1 {[%emt 0:00:04]} Nc6 {[%emt 0:00:04]} 26. Ra1 {[%emt 0:00:12]} Bd8 {[%emt 0:07:33]} 27. Bd2 {[%emt 0:02:52]} Be7 {[%emt 0:08:50]} 28. Be3 {[%emt 0:00:11]} Rd8 {[%emt 0:02:10]} 29. Bf3 {[%emt 0:01:14]} Nd4 {[%emt 0:05:16]} 30. Bxd4 {[%emt 0:02:34]} Rxd4 {[%emt 0:00:02]} 31. g3 {[%emt 0:00:56]} Bxc5 {[%emt 0:01:36]} 32. Kg2 {[%emt 0:00:11]} b5 {[%emt 0:01:11]} 33. axb6 {[%emt 0:01:05]} Qxb6 {[%emt 0:00:01]} 34. Rd1 {[%emt 0:01:28]} Rxd1 {[%emt 0:00:52]} 35. Bxd1 {[%emt 0:00:01]} a5 {[%emt 0:00:23]} 36. Qb3 {[%emt 0:00:27]} Qa7 {[%emt 0:00:28]} 37. c4 {[%emt 0:01:03]} Qd7 {[%emt 0:00:16]} 38. Qf3 {[%emt 0:01:21]} a4 {[%emt 0:00:30]} 39. Qe2 {[%emt 0:00:00]} a3 {[%emt 0:00:00]} 40. Bb3 {[%emt 0:00:00]} Qd4 {[%emt 0:00:00]} 41. Ba2 {[%emt 0:10:35]} Qg1+ {[%emt 0:04:20]} 42. Kf3 {[%emt 0:05:01]} Qh1+ {[%emt 0:01:51]} 43. Qg2 {[%emt 0:00:11]} Qa1 {[%emt 0:00:59]} 44. Qe2 {[%emt 0:09:53]} Bd4 {[%emt 0:02:07]} 45. Qc2 {[%emt 0:02:22]} Qf1+ {[%emt 0:01:17]} 46. Ke4 {[%emt 0:00:10]} Bc5 {[%emt 0:02:07]} 47. Qd2 {[%emt 0:02:10]} h4 {[%emt 0:02:37]} 48. gxh4 {[%emt 0:05:12]} Qh3 {[%emt 0:02:43]} 49. Qe2 {[%emt 0:01:17]} Qf5+ {[%emt 0:00:19]} 50. Kf3 {[%emt 0:00:09]} Qh5+ {[%emt 0:00:05]} 0-1

[Event "55th Rubinstein Memorial-A 2019"]
[Site "Polanica-Zdroj"]
[Date "2019.08.20"]
[Round "4.11"]
[White "Majek, Kacper"]
[Black "Psyk, Radoslaw"]
[Result "0-1"]
[ECO "D70"]
[WhiteElo "1984"]
[BlackElo "2326"]
[Annotator "NA"]
[PlyCount "58"]
[EventDate "2019.08.17"]
[EventType "swiss"]
[EventCountry "POL"]
[SourceTitle "playchess.com"]
[Source "ChessBase"]
[SourceQuality "1"]
[TimeControl "40/5400+30:1800+30"]

1. d4 {[%emt 0:00:00]} Nf6 {[%emt 0:02:45]} 2. c4 {[%emt 0:00:00]} g6 {[%emt 0:02:49]} 3. Nf3 {[%emt 0:00:00]} Bg7 {[%emt 0:00:14]} 4. g3 {[%emt 0:00:29]} O-O {[%emt 0:01:30]} 5. Bg2 {[%emt 0:00:04]} c6 {[%emt 0:01:53]} 6. O-O {[%emt 0:00:23]} d5 {[%emt 0:00:07]} 7. b3 {[%emt 0:02:03]} a5 {[%emt 0:02:51]} 8. Nc3 {[%emt 0:05:18]} Ne4 {[%emt 0:01:13]} 9. Bb2 {[%emt 0:01:11]} Nxc3 {[%emt 0:03:09]} 10. Bxc3 {[%emt 0:00:07]} a4 {[%emt 0:00:28]} 11. c5 {[%emt 0:13:42]} Nd7 {[%emt 0:06:05]} 12. b4 {[%emt 0:06:24]} b6 {[%emt 0:04:49]} 13. cxb6 {[%emt 0:02:34]} Nxb6 {[%emt 0:00:56]} 14. Ne5 {[%emt 0:02:12]} Ba6 {[%emt 0:02:12]} 15. Rc1 {[%emt 0:06:06]} Qd6 {[%emt 0:02:46]} 16. Bd2 {[%emt 0:10:30]} Nc4 {[%emt 0:03:46]} 17. Bf4 {[%emt 0:12:10]} Nxe5 {[%emt 0:12:52]} 18. dxe5 {[%emt 0:00:16]} Qxb4 {[%emt 0:10:44]} 19. Rxc6 {[%emt 0:01:00]} e6 {[%emt 0:00:02]} 20. Qc2 {[%emt 0:04:50]} Rac8 {[%emt 0:01:24]} 21. Bf3 {[%emt 0:07:48]} Rxc6 {[%emt 0:02:08]} 22. Qxc6 {[%emt 0:00:03]} Bc4 {[%emt 0:00:19]} 23. Be3 {[%emt 0:06:59]} Bxa2 {[%emt 0:06:12]} 24. Rc1 {[%emt 0:01:08]} Bc4 {[%emt 0:06:31]} 25. Bc5 {[%emt 0:02:05]} Qb2 {[%emt 0:00:14]} 26. Rf1 {[%emt 0:04:23]} a3 {[%emt 0:01:00]} 27. Bxf8 {[%emt 0:00:06]} Bxf8 {[%emt 0:00:02]} 28. Bg4 {[%emt 0:03:51]} a2 {[%emt 0:00:47]} 29. Qa8 {[%emt 0:03:09]} Qa3 {[%emt 0:01:13]} 0-1

[Event "55th Rubinstein Memorial-A 2019"]
[Site "Polanica-Zdroj"]
[Date "2019.08.20"]
[Round "4.12"]
[White "Kopica, Paulina"]
[Black "Siekanski, Janusz"]
[Result "1/2-1/2"]
[ECO "B40"]
[WhiteElo "1932"]
[BlackElo "2263"]
[Annotator "NA"]
[PlyCount "160"]
[EventDate "2019.08.17"]
[EventType "swiss"]
[EventCountry "POL"]
[SourceTitle "playchess.com"]
[Source "ChessBase"]
[SourceQuality "1"]
[TimeControl "40/5400+30:1800+30"]

1. e4 {[%emt 0:00:00]} c5 {[%emt 0:00:00]} 2. Nf3 {[%emt 0:00:00]} e6 {[%emt 0:00:00]} 3. d4 {[%emt 0:00:00]} cxd4 {[%emt 0:00:00]} 4. Nxd4 {[%emt 0:00:00]} Nf6 {[%emt 0:00:08]} 5. Bd3 {[%emt 0:00:08]} Nc6 {[%emt 0:00:39]} 6. Nxc6 {[%emt 0:00:21]} bxc6 {[%emt 0:00:33]} 7. O-O {[%emt 0:00:29]} d5 {[%emt 0:00:51]} 8. Nd2 {[%emt 0:00:56]} Be7 {[%emt 0:05:42]} 9. b3 {[%emt 0:03:08]} O-O {[%emt 0:01:29]} 10. Bb2 {[%emt 0:01:32]} a5 {[%emt 0:05:18]} 11. Qe2 {[%emt 0:07:09]} a4 {[%emt 0:02:55]} 12. Rad1 {[%emt 0:09:27]} axb3 {[%emt 0:07:46]} 13. axb3 {[%emt 0:00:05]} Ra2 {[%emt 0:06:54]} 14. Be5 {[%emt 0:24:10]} Nd7 {[%emt 0:07:16]} 15. Bg3 {[%emt 0:05:08]} Nc5 {[%emt 0:01:27]} 16. Rfe1 {[%emt 0:04:07]} Nxd3 {[%emt 0:01:51]} 17. Qxd3 {[%emt 0:00:28]} Ba6 {[%emt 0:01:24]} 18. c4 {[%emt 0:02:21]} Bb4 {[%emt 0:10:51]} 19. exd5 {[%emt 0:09:09]} exd5 {[%emt 0:04:24]} 20. Bf4 {[%emt 0:04:06]} Qf6 {[%emt 0:13:54]} 21. Qb1 {[%emt 0:12:25]} Rb2 {[%emt 0:09:21]} 22. Qc1 {[%emt 0:03:45]} Bxd2 {[%emt 0:04:55]} 23. Rxd2 {[%emt 0:02:22]} Rxb3 {[%emt 0:00:54]} 24. Be5 {[%emt 0:00:23]} Qg6 {[%emt 0:00:39]} 25. cxd5 {[%emt 0:01:13]} cxd5 {[%emt 0:00:15]} 26. Qc2 {[%emt 0:01:31]} Qxc2 {[%emt 0:02:07]} 27. Rxc2 {[%emt 0:00:02]} Re8 {[%emt 0:01:19]} 28. f3 {[%emt 0:00:50]} d4 {[%emt 0:04:28]} 29. Bg3 {[%emt 0:02:10]} Rxe1+ {[%emt 0:01:22]} 30. Bxe1 {[%emt 0:00:03]} h5 {[%emt 0:00:49]} 31. Ra2 {[%emt 0:02:59]} Bb7 {[%emt 0:02:42]} 32. Kf2 {[%emt 0:00:54]} h4 {[%emt 0:00:30]} 33. h3 {[%emt 0:00:23]} f6 {[%emt 0:00:41]} 34. Ke2 {[%emt 0:01:58]} g5 {[%emt 0:00:13]} 35. Bf2 {[%emt 0:01:47]} d3+ {[%emt 0:00:25]} 36. Kd2 {[%emt 0:01:37]} Kf7 {[%emt 0:00:20]} 37. Bd4 {[%emt 0:00:16]} f5 {[%emt 0:02:19]} 38. Ra5 {[%emt 0:00:41]} Kg6 {[%emt 0:00:29]} 39. Bc3 {[%emt 0:00:51]} g4 {[%emt 0:00:51]} 40. hxg4 {[%emt 0:00:00]} fxg4 {[%emt 0:00:00]} 41. fxg4 {[%emt 0:01:16]} Bxg2 {[%emt 0:00:53]} 42. Rh5 {[%emt 0:05:12]} h3 {[%emt 0:01:54]} 43. Kxd3 {[%emt 0:00:27]} Ra3 {[%emt 0:02:39]} 44. Kd2 {[%emt 0:07:50]} Ra2+ {[%emt 0:00:24]} 45. Ke3 {[%emt 0:01:26]} Ra3 {[%emt 0:00:17]} 46. Kd2 {[%emt 0:00:21]} Ra4 {[%emt 0:00:50]} 47. Rh8 {[%emt 0:00:58]} Ra2+ {[%emt 0:02:32]} 48. Ke3 {[%emt 0:01:51]} Ra3 {[%emt 0:00:40]} 49. Kd2 {[%emt 0:00:45]} Kg5 {[%emt 0:00:31]} 50. Be5 {[%emt 0:01:53]} Kxg4 {[%emt 0:00:58]} 51. Bc7 {[%emt 0:01:20]} Be4 {[%emt 0:04:10]} 52. Rg8+ {[%emt 0:00:41]} Kf5 {[%emt 0:00:31]} 53. Rf8+ {[%emt 0:01:54]} Kg5 {[%emt 0:00:38]} 54. Rh8 {[%emt 0:00:59]} Ra7 {[%emt 0:01:45]} 55. Re8 {[%emt 0:06:27]} Bh7 {[%emt 0:00:23]} 56. Be5 {[%emt 0:03:25]} Kg4 {[%emt 0:04:49]} 57. Ke3 {[%emt 0:02:05]} Rb7 {[%emt 0:03:12]} 58. Bd6 {[%emt 0:00:37]} Rd7 {[%emt 0:02:27]} 59. Bb8 {[%emt 0:00:30]} Rb7 {[%emt 0:00:41]} 60. Bd6 {[%emt 0:00:04]} Rb3+ {[%emt 0:00:07]} 61. Kf2 {[%emt 0:00:26]} Rb2+ {[%emt 0:00:17]} 62. Ke3 {[%emt 0:00:58]} Rb3+ {[%emt 0:02:27]} 63. Kf2 {[%emt 0:00:26]} Rb7 {[%emt 0:00:09]} 64. Ke3 {[%emt 0:00:20]} Rf7 {[%emt 0:00:21]} 65. Bb8 {[%emt 0:00:24]} Rf3+ {[%emt 0:01:16]} 66. Ke2 {[%emt 0:00:18]} Rf7 {[%emt 0:01:35]} 67. Ke3 {[%emt 0:00:15]} Kh5 {[%emt 0:00:40]} 68. Bd6 {[%emt 0:00:45]} Kg6 {[%emt 0:01:50]} 69. Rb8 {[%emt 0:01:06]} Rd7 {[%emt 0:00:30]} 70. Bf4 {[%emt 0:00:30]} Kf5 {[%emt 0:01:00]} 71. Rh8 {[%emt 0:00:31]} Kg4 {[%emt 0:00:19]} 72. Bb8 {[%emt 0:00:11]} Re7+ {[%emt 0:01:07]} 73. Kf2 {[%emt 0:00:22]} Rf7+ {[%emt 0:00:02]} 74. Ke3 {[%emt 0:00:08]} Kg5 {[%emt 0:00:22]} 75. Bd6 {[%emt 0:00:11]} Kg6 {[%emt 0:00:18]} 76. Rb8 {[%emt 0:00:16]} Rd7 {[%emt 0:00:31]} 77. Bf4 {[%emt 0:00:09]} Ra7 {[%emt 0:01:02]} 78. Kf3 {[%emt 0:01:21]} Ra2 {[%emt 0:01:31]} 79. Rb6+ {[%emt 0:00:30]} Kf7 {[%emt 0:00:44]} 80. Kg4 {[%emt 0:01:20]} Rg2+ {[%emt 0:02:35]} 1/2-1/2